bitfinex/quotes_ETHUSD_20240711
["timestamp","ask_amount","ask_price","bid_price","bid_amount"]
[1720706305103,1.92875386,3182.8,3182.5,4.04479438]
[1720706305310,1.92875386,3182.7,3182.5,4.04486438]
[1720706305531,0.61142561,3182.6,3182.5,4.04486438]
[1720706305740,1.92881773,3182.7,3182.5,0.90269438]
[1720706306046,0.61148948,3182.6,3182.5,0.90269438]
[1720706306215,1.31761088,3182.6,3182.5,0.90269438]
[1720706306538,1.69948916,3182.6,3182.5,0.90269438]
[1720706306743,3.34591983,3182.6,3182.5,0.90269438]
[1720706306946,0.48002434,3182.6,3182.5,0.90269438]
[1720706307259,1.3178632,3182.6,3182.5,4.04487438]
[1720706307421,1.3178632,3182.7,3182.5,4.04487438]
[1720706307602,1.3178632,3182.7,3182.6,6.28416]
[1720706307800,1.12017165,3182.7,3182.6,6.28416]
[1720706308050,1.3178632,3182.8,3182.6,3.14208]
[1720706308250,1.93408034,3182.8,3182.7,3.14198]
[1720706308551,1.3178632,3182.8,3182.7,3.14198]
[1720706309405,1.3178632,3182.9,3182.8,3.14188]
[1720706309749,1.3178632,3182.9,3182.7,5.47478]
[1720706309750,1.93887779,3182.9,3182.7,5.47478]
[1720706310046,1.93887779,3182.8,3182.7,3.14198]
[1720706310346,2.87200695,3182.8,3182.7,3.14198]
[1720706310546,0.62102704,3182.8,3182.5,0.90269438]
[1720706310848,1.64757241,3182.6,3182.5,0.90269438]
[1720706311055,3.35663742,3182.6,3182.5,0.90269438]
[1720706311557,1.93924326,3182.6,3182.5,0.90269438]
[1720706311703,0.62109283,3182.6,3182.5,0.90269438]
[1720706311903,1.31819421,3182.6,3182.5,0.90269438]
[1720706312147,1.93924655,3182.6,3182.5,0.90269438]
[1720706312346,1.31815372,3182.6,3182.5,0.90269438]
[1720706312627,1.93924655,3182.6,3182.5,0.90269438]
[1720706312835,1.12524297,3182.6,3182.5,0.90269438]
[1720706313070,1.12524297,3182.6,3182.5,4.04487438]
[1720706313236,0.98866451,3182.7,3182.6,5.48168]
[1720706313432,0.98866451,3182.7,3182.6,8.62376]
[1720706313759,1.31838058,3182.9,3182.8,3.14181]
[1720706313918,1.93954532,3182.9,3182.8,3.14181]
[1720706315671,0.62116474,3182.9,3182.8,3.14181]
[1720706316078,1.93954532,3182.9,3182.8,3.14181]
[1720706316374,0.62116474,3182.9,3182.8,3.14181]
[1720706316755,0.4846839,3182.9,3182.8,3.14181]
[1720706316932,1.31810604,3183.0,3182.9,3.14178]
[1720706317142,1.93915796,3183.0,3182.9,6.28356]
[1720706317345,1.12482568,3183.0,3182.9,6.91819918]
[1720706317541,0.13645682,3183.0,3182.9,6.91819918]
[1720706317781,0.65886422,3183.0,3182.9,6.91819918]
[1720706317954,0.79532104,3183.0,3182.9,6.91819918]
[1720706318774,0.79532104,3183.0,3182.9,10.05997918]
[1720706318983,1.31810604,3183.3,3183.0,6.28338]
[1720706318984,0.65886422,3183.1,3183.0,6.28338]
[1720706319184,0.75951471,3183.1,3183.0,6.34620443]
[1720706319393,0.10065049,3183.1,3183.0,6.34620443]
[1720706319710,0.65886422,3183.3,3183.0,3.20451443]
[1720706319911,0.10059824,3183.2,3183.1,6.28318]
[1720706320074,0.65886422,3183.3,3183.2,6.28298]
[1720706320380,0.75909337,3183.3,3183.2,6.28298]
[1720706322083,0.10060147,3183.3,3183.2,6.28298]
[1720706322294,0.10060147,3183.3,3183.2,6.34580258]
[1720706322517,0.10060147,3183.3,3183.2,6.28298]
[1720706322812,0.10060147,3183.3,3183.2,9.49212399]
[1720706323193,0.6584919,3183.5,3183.4,6.28258]
[1720706323411,0.6584919,3183.7,3183.6,6.28218]
[1720706323709,0.6584919,3183.7,3183.3,3.14139]
[1720706323710,0.6584919,3183.9,3183.8,3.1409]
[1720706323907,0.75887939,3183.9,3183.8,3.1409]
[1720706324311,0.10038749,3183.9,3183.8,3.1409]
[1720706324499,0.6584919,3184.0,3183.9,3.1408]
[1720706324707,0.6584919,3184.0,3183.7,3.14099]
[1720706325017,0.65765257,3183.9,3183.7,3.14094]
[1720706325176,0.65765257,3183.9,3183.8,3.1409]
[1720706325518,0.10034819,3183.9,3183.8,3.1409]
[1720706325819,0.75800076,3183.9,3183.8,3.1409]
[1720706326442,0.10034819,3183.9,3183.8,3.1409]
[1720706326583,0.65765257,3184.1,3184.0,3.1407]
[1720706326782,0.65765257,3184.1,3184.0,6.2814]
[1720706326978,0.65765257,3184.2,3184.1,3.1406]
[1720706327204,0.75793327,3184.2,3184.1,3.1406]
[1720706328199,0.75793327,3184.2,3184.0,3.1407]
[1720706328400,0.75793327,3184.2,3184.0,3.14063]
[1720706328401,0.65765257,3184.2,3184.0,3.14063]
[1720706328836,0.65765257,3184.2,3183.7,3.14099]
[1720706329054,0.75786786,3184.1,3183.7,3.14099]
[1720706329205,0.65765257,3184.2,3184.0,3.1407]
[1720706329400,0.65765257,3184.4,3184.1,3.20339375]
[1720706329709,1.3169838,3184.7,3184.5,3.14021]
[1720706329710,0.65765257,3184.7,3184.5,3.14021]
[1720706330022,0.65659436,3184.9,3184.3,5.51176]
[1720706330222,0.09999589,3184.8,3184.3,3.14036]
[1720706330428,2.4844,3185.3,3184.0,5.65907736]
[1720706330612,0.65632736,3184.7,3183.7,6.42861736]
[1720706330976,0.75633715,3184.6,3183.7,3.14094]
[1720706331117,0.75633715,3184.5,3183.9,3.14077]
[1720706331431,0.65632736,3184.6,3183.9,3.14077]
[1720706331643,2.59066612,3184.5,3183.7,3.14094]
[1720706331845,0.10006612,3184.4,3183.7,3.14092]
[1720706332000,0.65632736,3184.6,3183.9,3.14079]
[1720706332400,0.65632736,3184.6,3183.7,3.14091]
[1720706332619,0.65632736,3184.5,3183.7,3.14091]
[1720706333229,0.65632736,3184.6,3183.7,3.14091]
[1720706333403,1.0694692,3184.6,3183.7,3.14091]
[1720706333603,1.0694692,3184.6,3183.8,3.14089]
[1720706333835,0.75636068,3184.5,3183.8,3.14089]
[1720706334010,0.75636068,3184.4,3183.8,3.14089]
[1720706334214,0.65632736,3184.5,3183.8,3.14089]
[1720706334406,0.9617992,3184.4,3183.6,6.28212]
[1720706334601,0.86172338,3184.4,3183.7,3.14099]
[1720706334827,0.10009844,3184.3,3183.7,3.14099]
[1720706335150,0.10009844,3184.3,3183.5,1.27]
[1720706335151,0.86172338,3184.4,3184.1,0.2]
[1720706335303,2.96092736,3184.2,3184.1,0.2]
[1720706335667,7.32118099,3184.2,3184.1,0.17537754]
[1720706335814,10.78927622,3184.2,3184.1,0.17537754]
[1720706336014,9.14902627,3184.2,3184.1,0.17537754]
[1720706336215,3.14089,3183.9,3182.9,3.28767736]
[1720706336443,0.65611656,3183.6,3182.6,6.42969736]
[1720706336615,0.09609322,3183.5,3182.6,6.42969736]
[1720706336945,0.65611656,3183.5,3182.6,6.42969736]
[1720706337148,0.65611656,3183.4,3182.6,3.28767736]
[1720706337344,0.65611656,3183.3,3182.6,3.28767736]
[1720706337547,0.65611656,3182.9,3182.6,3.28767736]
[1720706337713,0.65611656,3182.9,3182.1,19.81023736]
[1720706337910,0.65611656,3182.8,3182.2,3.14246]
[1720706338305,0.75222252,3182.7,3182.2,3.14246]
[1720706338506,0.65611656,3182.7,3182.2,3.14246]
[1720706338703,0.65611656,3182.8,3182.2,3.14246]
[1720706339252,0.75246495,3182.7,3182.1,4.54767736]
[1720706339408,0.75246495,3182.6,3182.1,4.54767736]
[1720706339605,0.65651505,3182.6,3182.1,4.54767736]
[1720706339844,0.65651505,3182.7,3182.1,4.54767736]
[1720706340026,0.75288012,3182.6,3182.1,4.54767736]
[1720706340235,0.65651505,3182.8,3182.3,2.2762]
[1720706340431,0.98477258,3182.9,3182.3,2.2762]
[1720706340432,0.65651505,3182.9,3182.3,2.2762]
[1720706340607,0.65651505,3183.0,3182.4,3.14226]
[1720706340946,0.65651505,3183.0,3182.5,3.684006]
[1720706341107,0.65651505,3183.1,3182.5,0.541846]
[1720706341308,0.98477258,3183.2,3182.5,0.541846]
[1720706341309,0.75277294,3183.0,3182.5,0.541846]
[1720706341518,0.09625789,3182.9,3182.5,0.541846]
[1720706341839,0.65651505,3182.9,3182.5,0.541846]
[1720706342046,0.65651505,3182.9,3182.2,3.1424]
[1720706342438,0.65651505,3182.9,3182.4,3.14222]
[1720706342612,0.65651505,3183.0,3182.5,3.20494463]
[1720706343020,0.65651505,3183.0,3182.4,3.14222]
[1720706343226,0.65651505,3183.0,3182.2,3.14245]
[1720706343549,0.75279734,3182.9,3182.3,0.84591701]
[1720706343855,0.7528381,3182.8,3182.1,5.3167201]
[1720706344055,0.65651505,3182.7,3182.1,5.3167201]
[1720706344216,0.7528381,3182.7,3182.1,8.4592401]
[1720706344418,0.09632305,3182.6,3182.1,8.4592401]
[1720706344618,0.65651505,3182.7,3182.2,4.30264301]
[1720706345027,0.65651505,3182.9,3182.3,3.14231]
[1720706345225,0.65651505,3182.9,3182.3,3.14236]
[1720706345226,0.65651505,3182.8,3182.3,3.14236]
[1720706345429,0.75656766,3182.8,3182.2,1.16018301]
[1720706345646,0.75656766,3182.7,3182.2,1.16018301]
[1720706345849,0.65690082,3182.7,3182.2,1.16018301]
[1720706346823,0.65690082,3182.7,3182.2,4.30263301]
[1720706347021,0.65690082,3182.7,3182.3,0.5562633]
[1720706347425,0.65690082,3182.7,3182.1,1.26]
[1720706347837,0.65690082,3182.7,3182.1,4.40257]
[1720706348042,0.98535124,3182.9,3182.1,4.40257]
[1720706348043,0.75661649,3182.6,3182.1,4.40257]
[1720706348226,0.65690082,3182.7,3182.2,3.14245]
[1720706348647,0.65690082,3182.7,3182.1,1.26]
[1720706348851,0.75662854,3182.6,3182.1,1.700259]
[1720706349123,0.65690082,3182.7,3182.2,3.14247]
[1720706349442,0.65690082,3182.8,3182.2,3.14247]
[1720706349748,0.65690082,3182.9,3182.4,3.14221]
[1720706349954,0.65690082,3182.9,3182.5,3.46263513]
[1720706350172,0.98535124,3183.1,3182.5,3.52547208]
[1720706350173,0.65690082,3183.0,3182.5,3.52547208]
[1720706350472,0.09962421,3182.9,3182.5,3.46263513]
[1720706350774,0.65690082,3182.9,3182.5,3.46263513]
[1720706351273,0.65690082,3182.7,3182.1,1.700259]
[1720706351576,0.75658561,3182.6,3182.1,1.700259]
[1720706351755,0.98535124,3182.8,3182.4,3.14221]
[1720706351756,0.65690082,3182.8,3182.4,3.14221]
[1720706351940,0.65684873,3182.8,3182.4,6.28442]
[1720706352246,0.65684873,3182.8,3182.1,1.26]
[1720706352446,0.65684873,3182.8,3182.1,4.40256]
[1720706352758,0.65684873,3182.8,3182.2,3.14246]
[1720706353055,0.75652061,3182.7,3182.2,0.754506]
[1720706353261,0.65684873,3182.7,3182.2,0.754506]
[1720706353840,0.75655425,3182.7,3182.2,0.754506]
[1720706354048,0.65684873,3182.7,3182.2,0.754506]
[1720706354257,0.65684873,3182.7,3182.1,1.26]
[1720706355272,0.75654238,3182.7,3182.1,1.26]
[1720706355484,0.09969365,3182.6,3182.1,1.26]
[1720706355640,0.65684873,3182.7,3182.1,1.26]
[1720706356489,0.75654942,3182.7,3182.1,1.26]
[1720706357076,0.75654942,3182.7,3182.1,2.014523]
[1720706357502,0.75654942,3182.7,3182.1,5.157083]
[1720706357657,0.75654942,3182.7,3182.4,3.14221]
[1720706357988,0.65684873,3182.9,3182.4,3.14221]
[1720706358196,0.65684873,3182.9,3182.4,3.770663]
[1720706358560,0.9852731,3183.1,3182.4,3.770663]
[1720706358561,0.65684873,3183.0,3182.4,3.770663]
[1720706358758,0.09963286,3182.9,3182.4,3.770663]
[1720706358997,0.65684873,3183.0,3182.4,3.770663]
[1720706359170,0.75648378,3182.9,3182.4,3.770663]
[1720706359491,0.65684873,3182.9,3182.5,0.6912983]
[1720706359893,0.65684873,3182.9,3182.5,3.8334483]
[1720706360195,0.65684873,3183.0,3182.6,0.06283771]
[1720706360495,0.65684873,3183.0,3182.6,3.14206]
[1720706360856,0.65684873,3183.0,3182.3,3.14233]
[1720706361060,0.65684873,3182.8,3182.3,3.14233]
[1720706361294,0.65684873,3182.9,3182.3,4.2146413]
[1720706361457,0.65684873,3182.9,3182.3,4.2146013]
[1720706361654,0.9852731,3183.0,3182.6,3.14203]
[1720706361655,0.65684873,3183.0,3182.6,3.14203]
[1720706361956,0.65684873,3183.1,3182.7,3.14197]
[1720706362157,1.31369747,3183.4,3183.1,3.14159]
[1720706362158,0.65684873,3183.4,3183.1,3.14159]
[1720706362382,0.65684873,3183.6,3183.2,3.14143]
[1720706362585,0.9852731,3183.8,3183.2,3.14143]
[1720706362586,0.65684873,3183.7,3183.2,3.14143]
[1720706363111,0.65684873,3183.7,3183.3,3.14135]
[1720706363290,0.09941601,3183.6,3183.3,3.14135]
[1720706363597,0.65684873,3183.7,3183.2,3.14149]
[1720706363757,0.65684873,3183.7,3183.3,3.20420137]
[1720706363954,0.65684873,3183.8,3183.5,3.14119]
[1720706364159,0.65684873,3183.9,3183.5,3.14119]
[1720706364360,0.65684873,3184.0,3183.6,3.20388679]
[1720706364557,0.65684873,3184.1,3183.7,3.14098]
[1720706364760,0.65684873,3184.3,3183.8,3.52408111]
[1720706364995,2.3504,3185.0,3183.8,3.52408111]
[1720706365239,0.65635738,3184.3,3183.8,0.38319111]
[1720706365409,0.65635738,3184.4,3184.1,3.1406]
[1720706365828,0.09922309,3184.3,3184.1,3.1406]
[1720706365998,0.65635738,3184.4,3184.1,3.1406]
[1720706366504,0.65635738,3184.4,3183.9,3.14072]
[1720706366505,0.09922837,3184.3,3183.9,3.14072]
[1720706366865,0.75558575,3184.3,3184.0,3.14064]
[1720706367000,0.65635738,3184.3,3184.0,3.14064]
[1720706367446,0.65635738,3184.4,3184.0,3.14064]
[1720706367736,0.75558374,3184.3,3183.8,3.46118968]
[1720706367942,0.65635738,3184.4,3184.0,3.14063]
[1720706368233,0.65635738,3184.4,3184.2,3.14049]
[1720706368446,0.98453608,3184.6,3184.2,3.14049]
[1720706368447,0.65635738,3184.6,3184.2,3.14049]
[1720706368597,0.65635738,3184.7,3184.2,3.20329301]
[1720706368995,0.98453608,3184.9,3184.2,3.20329301]
[1720706368996,0.65635738,3184.8,3184.2,3.20329301]
[1720706369232,0.09911496,3184.7,3184.2,3.20329301]
[1720706369434,0.65635738,3184.8,3184.2,3.20329301]
[1720706369597,0.75546991,3184.7,3184.2,3.20329301]
[1720706369945,0.65635738,3184.8,3184.2,3.20329301]
[1720706370153,0.09910568,3184.7,3184.2,3.20329301]
[1720706370352,0.65635738,3184.8,3184.2,3.20329301]
[1720706370953,0.65635738,3184.8,3184.3,0.06280333]
[1720706371122,0.65635738,3184.8,3184.4,3.14029]
[1720706372129,0.65635738,3184.8,3184.2,3.14049]
[1720706372467,0.65635738,3184.8,3184.3,3.14037]
[1720706373237,0.65635738,3184.9,3184.4,0.06280001]
[1720706373444,0.98453608,3185.0,3184.6,3.1401]
[1720706373445,0.65635738,3185.0,3184.6,3.1401]
[1720706374047,0.65635738,3185.1,3184.7,0.06279525]
[1720706374364,0.65635738,3185.3,3184.5,3.14015]
[1720706374516,0.65635738,3185.3,3184.7,3.13995]
[1720706375359,0.74375268,3185.4,3184.7,3.13995]
[1720706375658,0.76022128,3185.3,3184.6,3.14009]
[1720706375859,0.65635738,3185.3,3184.6,3.14009]
[1720706376461,0.1039085,3185.2,3184.6,3.14009]
[1720706376630,0.65635738,3185.1,3184.2,3.14044]
[1720706376947,0.10393837,3185.0,3184.2,3.14049]
[1720706377148,0.65635738,3185.1,3184.2,4.122712]
[1720706377740,0.65635738,3185.1,3184.3,3.1404]
[1720706377938,0.10396029,3185.0,3184.3,3.1404]
[1720706378140,0.10396029,3185.0,3184.2,0.982222]
[1720706378141,0.65521059,3185.1,3184.2,0.982222]
[1720706378484,0.65521059,3185.0,3184.1,7.54107]
[1720706378641,0.65521059,3185.0,3184.1,4.40053]
[1720706378642,0.10398191,3184.9,3184.1,4.40053]
[1720706378837,0.65521059,3185.0,3184.1,4.40053]
[1720706379044,0.75919147,3184.9,3184.1,1.26]
[1720706379302,0.98281589,3185.1,3184.1,1.26]
[1720706379303,0.75919147,3184.8,3184.1,1.26]
[1720706379582,0.65521059,3184.9,3184.1,1.61412]
[1720706379742,0.65521059,3185.0,3184.2,6.28087]
[1720706379943,0.65521059,3185.0,3184.3,3.14039]
[1720706380144,0.65521059,3185.3,3184.6,3.14009]
[1720706380359,0.65521059,3185.3,3184.6,6.28011]
[1720706380568,0.65521059,3185.3,3184.6,6.28006]
[1720706380787,0.74260589,3185.4,3184.9,3.13981]
[1720706380984,0.0873953,3185.4,3184.9,3.13981]
[1720706381547,0.0873953,3185.4,3184.8,3.13989]
[1720706382059,0.0873953,3185.4,3184.8,6.27974]
[1720706382268,0.0873953,3185.4,3184.8,6.2797]
[1720706382477,0.0873953,3185.4,3184.9,3.1398]
[1720706382663,0.0873953,3185.4,3185.3,6.27884]
[1720706383049,0.0873953,3185.4,3185.3,11.39603495]
[1720706383245,0.0873953,3185.4,3185.3,17.39405495]
[1720706383776,0.0873953,3185.4,3185.3,14.25463495]
[1720706383977,0.0873953,3185.4,3185.3,14.19186]
[1720706384148,0.0873953,3185.4,3185.3,15.737046]
[1720706384886,0.65355641,3187.2,3186.3,6.27671]
[1720706385098,0.65355641,3187.2,3186.3,3.13835]
[1720706385099,0.65350621,3187.2,3186.3,3.13835]
[1720706385252,6.05858621,3187.4,3186.3,3.766043]
[1720706385592,0.75998467,3187.3,3186.0,3.13866]
[1720706385751,0.65350621,3187.3,3186.0,3.13866]
[1720706386074,0.65350621,3187.3,3186.1,3.13863]
[1720706386269,0.60350621,3187.3,3186.1,3.13863]
[1720706386464,3.13763,3187.2,3186.1,3.13863]
[1720706386656,4.0628982,3187.2,3186.1,3.766359]
[1720706387651,3.13766,3187.1,3186.1,0.627729]
[1720706388070,3.13766,3187.1,3186.1,3.766349]
[1720706388275,0.9252682,3187.2,3186.1,3.766349]
[1720706388684,4.0628282,3187.2,3186.1,3.766349]
[1720706388891,4.0628282,3187.2,3186.2,0.6904999]
[1720706389606,4.0628282,3187.2,3186.1,3.13862]
[1720706391298,2.2677,3187.4,3186.3,5.52843]
[1720706391460,2.2677,3187.4,3186.3,5.59119125]
[1720706392503,3.13704,3187.8,3186.5,3.13814]
[1720706392662,4.77963563,3187.7,3186.6,3.45815019]
[1720706392861,3.693114,3187.7,3186.6,3.45815019]
[1720706393301,0.556064,3187.7,3186.6,3.45815019]
[1720706393510,0.556064,3187.7,3186.7,3.13801]
[1720706393805,0.3693104,3187.6,3186.7,3.13801]
[1720706394880,0.3693104,3187.6,3186.7,6.27597]
[1720706395084,0.556064,3187.7,3186.7,6.27597]
[1720706395590,0.556064,3187.7,3186.8,3.13793]
[1720706398211,0.556064,3187.7,3187.1,0.2]
[1720706398575,2.4236,3187.9,3187.1,0.2]
[1720706398975,3.13696,3187.8,3187.1,0.2]
[1720706399389,6.27362,3188.0,3187.1,0.2]
[1720706399602,3.13677,3188.0,3187.1,0.2]
[1720706399810,5.58707,3188.3,3187.1,5.80406]
[1720706400018,0.750221,3188.1,3187.1,5.80406]
[1720706400215,3.90287573,3188.6,3187.1,5.80406]
[1720706400216,5.5162487,3188.6,3187.2,3.13752]
[1720706400416,5.5162087,3188.6,3187.4,3.13727]
[1720706400601,5.5162087,3188.6,3187.5,3.13724]
[1720706400914,3.13627,3188.5,3187.1,5.80408]
[1720706401117,3.13677,3188.0,3187.1,2.6665]
[1720706401275,5.05207,3187.7,3187.1,0.2]
[1720706401476,1.915,3187.7,3187.1,0.2]
[1720706401675,0.313677,3187.9,3187.1,0.2]
[1720706402321,2.4447,3188.2,3187.1,3.33764]
[1720706402530,1.915,3188.5,3187.5,3.13716]
[1720706402723,1.915,3188.5,3187.2,2.3286]
[1720706402894,3.13655,3188.3,3187.2,2.3286]
[1720706403093,3.13676,3188.0,3187.2,2.3286]
[1720706403300,0.313676,3187.9,3187.2,2.3286]
[1720706403781,0.313676,3187.9,3187.1,0.2]
[1720706404176,3.13705,3187.7,3187.1,0.2]
[1720706404598,3.13697,3187.8,3187.1,0.2]
[1720706404795,0.313676,3187.9,3187.1,0.2]
[1720706404999,5.38641,3188.4,3187.1,0.2]
[1720706405209,0.76673701,3188.6,3187.2,2.3514]
[1720706405409,3.13643,3188.4,3187.4,3.13732]
[1720706405609,5.05143,3188.4,3187.2,5.48887]
[1720706405810,5.05143,3188.4,3187.3,3.13735]
[1720706405996,2.74533087,3188.4,3187.4,3.13733]
[1720706406214,0.1156387,3188.6,3187.6,3.13713]
[1720706406525,0.1156387,3188.6,3187.7,2.2991]
[1720706406727,0.1156387,3188.6,3187.8,3.13693]
[1720706407685,0.1156387,3188.6,3188.0,3.13675]
[1720706407886,0.1156387,3188.6,3188.4,3.13634]
[1720706408227,0.1156387,3188.6,3188.5,6.586174]
[1720706408789,0.1156387,3188.6,3188.5,9.722444]
[1720706409011,0.1156387,3188.6,3188.5,17.736514]
[1720706409188,0.65109831,3191.0,3189.6,3.1351]
[1720706409485,3.24464747,3191.2,3189.2,2.4128]
[1720706409486,2.268,3191.2,3189.4,3.13536]
[1720706409689,2.268,3191.2,3189.2,2.4128]
[1720706409690,1.915,3190.5,3189.2,2.4128]
[1720706409925,1.915,3190.5,3189.3,3.13548]
[1720706410164,3.1344,3190.4,3189.3,3.13548]
[1720706410458,1.915,3190.9,3189.3,3.19818192]
[1720706410668,3.13421,3190.6,3189.5,3.13528]
[1720706410812,0.313421,3190.5,3189.5,3.197977]
[1720706411012,0.4183,3191.1,3189.8,3.13498]
[1720706411349,0.4183,3191.1,3189.6,3.13518]
[1720706411350,3.13409,3190.8,3189.6,3.13518]
[1720706411669,3.13389,3191.0,3189.7,3.13508]
[1720706411820,3.13438,3190.5,3189.3,3.13546]
[1720706412156,3.13411,3190.7,3189.4,3.13538]
[1720706412452,0.313411,3190.6,3189.5,0.313538]
[1720706412613,0.4183,3191.1,3189.6,3.19787557]
[1720706412812,0.4183,3191.1,3189.5,0.313538]
[1720706412813,0.4183,3191.1,3190.0,3.13471]
[1720706413059,3.13355,3191.3,3190.2,2.2911]
[1720706413444,0.1156387,3191.8,3190.2,2.2911]
[1720706413613,3.13318,3191.7,3189.7,2.3001]
[1720706413808,3.13344,3191.4,3190.0,3.1347]
[1720706414012,3.13325,3191.6,3189.7,2.3001]
[1720706414013,3.13327,3191.6,3190.5,3.13423]
[1720706414313,3.446677,3191.5,3190.3,3.13449]
[1720706414546,3.13419,3190.7,3189.7,2.3001]
[1720706414850,2.541,3191.2,3190.0,3.13473]
[1720706415088,3.13372,3191.1,3190.0,3.13473]
[1720706415302,3.13353,3191.3,3190.1,3.13463]
[1720706415494,3.446677,3191.5,3190.4,3.13432]
[1720706415495,3.13338,3191.5,3190.4,3.13432]
[1720706415693,3.13338,3191.5,3190.2,3.13453]
[1720706415984,5.0155,3191.6,3189.7,2.3001]
[1720706416189,3.13369,3191.2,3190.0,3.13476]
[1720706416394,3.13411,3190.7,3189.7,2.3001]
[1720706416603,0.313411,3190.6,3189.7,2.3001]
[1720706416763,3.13433,3190.5,3189.4,3.13536]
[1720706416958,0.313411,3190.6,3189.4,3.13536]
[1720706417160,3.13441,3190.4,3189.2,5.57138]
[1720706417391,0.313411,3190.6,3189.2,2.4358]
[1720706417392,3.1347,3190.1,3189.2,2.4358]
[1720706417587,0.31347,3190.0,3189.2,2.4358]
[1720706417773,0.31347,3190.0,3188.7,2.2999]
[1720706417983,3.13511,3189.7,3188.7,2.2999]
[1720706418188,2.541,3190.4,3189.1,3.13566]
[1720706418373,2.2815,3190.7,3188.9,3.13581]
[1720706418374,3.13457,3190.3,3188.9,3.13581]
[1720706418574,3.13475,3190.1,3189.0,3.13577]
[1720706418787,5.41564,3190.7,3189.1,3.13558]
[1720706418788,2.2815,3190.7,3189.1,3.13558]
[1720706418991,0.2594911,3190.5,3189.6,3.13517]
[1720706419158,0.2594911,3190.5,3189.7,3.13508]
[1720706419694,3.13446,3190.4,3189.1,1.57982876]
[1720706419898,3.1347,3190.1,3189.1,4.39566]
[1720706420061,5.48463,3190.5,3189.3,3.13542]
[1720706420262,3.13424,3190.6,3189.5,3.13525]
[1720706420459,2.541,3190.9,3189.2,3.13554]
[1720706420460,3.13436,3190.5,3189.2,3.13554]
[1720706420684,3.447926,3190.4,3189.1,1.26]
[1720706421001,3.13451,3190.3,3189.1,1.26]
[1720706421207,0.313436,3190.4,3189.6,3.13512]
[1720706421371,2.70068905,3191.3,3189.8,3.13498]
[1720706421372,3.13389,3191.0,3189.8,3.13498]
[1720706421578,2.3503,3191.1,3189.6,3.13512]
[1720706422089,3.13396,3190.9,3189.1,1.26]
[1720706422292,3.13455,3190.3,3189.2,3.13552]
[1720706422599,3.13415,3190.7,3189.1,1.26]
[1720706422789,3.13415,3190.7,3189.2,0.36956]
[1720706422790,0.567515,3190.7,3189.2,0.36956]
[1720706423000,3.13336,3191.5,3189.9,2.3741]
[1720706423300,3.13336,3191.5,3190.4,3.13438]
[1720706423459,3.13336,3191.5,3190.3,3.1344]
[1720706423660,3.13357,3191.3,3190.2,3.13459]
[1720706423908,3.13336,3191.5,3190.4,3.13435]
[1720706423909,0.313357,3191.2,3190.4,3.13435]
[1720706424199,3.13336,3191.5,3190.5,3.1343]
[1720706424359,2.4556,3191.6,3190.5,3.1343]
[1720706424360,5.58884,3191.6,3190.5,3.1343]
[1720706424566,5.58884,3191.6,3189.9,5.50896]
[1720706424567,3.13313,3191.7,3190.6,3.13414]
[1720706424964,0.1156387,3191.8,3191.0,2.256]
[1720706425780,0.1156387,3191.8,3190.7,6.26805]
[1720706426118,0.44049157,3191.8,3190.5,2.2907]
[1720706426328,0.44049157,3191.8,3190.6,3.13417]
[1720706426620,3.13313,3191.7,3190.6,3.13417]
[1720706426983,3.2487387,3191.8,3190.5,2.2907]
[1720706426984,0.1156387,3191.8,3190.5,2.2907]
[1720706427182,3.2487087,3191.8,3190.5,5.42496]
[1720706427715,3.2487087,3191.8,3190.5,8.55916]
[1720706427919,3.13322,3191.6,3190.5,5.4249]
[1720706428091,3.446642,3191.5,3190.5,5.4249]
[1720706428294,0.313322,3191.5,3190.8,3.13399]
[1720706428501,3.13313,3191.7,3190.5,2.2907]
[1720706428728,3.13338,3191.5,3190.5,2.2907]
[1720706429523,0.1156387,3191.8,3190.2,1.26]
[1720706429727,3.13354,3191.3,3190.2,1.26]
[1720706429886,3.13368,3191.2,3190.2,1.26]
[1720706430227,3.447088,3191.1,3190.2,1.26]
[1720706431123,3.13387,3191.0,3190.2,1.26]
[1720706432296,3.13411,3190.7,3189.9,0.2]
[1720706432494,3.13411,3190.7,3189.9,0.4]
[1720706433135,3.13431,3190.5,3189.9,0.4]
[1720706433422,3.13405,3190.8,3189.9,0.4]
[1720706433720,3.13411,3190.7,3189.9,0.4]
[1720706433886,0.626816,3190.6,3189.9,0.4]
[1720706434087,3.761046,3190.6,3189.9,0.4]
[1720706434489,3.1345,3190.3,3189.9,0.4]
[1720706434729,3.13471,3190.1,3189.9,0.4]
[1720706435099,3.13451,3190.3,3189.9,0.4]
[1720706435296,3.448051,3190.2,3189.9,0.4]
[1720706435524,3.1347,3190.1,3189.9,0.4]
[1720706435816,0.626816,3190.6,3189.9,0.4]
[1720706436001,0.16091825,3191.3,3189.9,0.4]
[1720706436002,3.13416,3190.7,3189.9,0.4]
[1720706436202,3.13421,3190.6,3189.9,0.4]
[1720706436628,6.26958,3190.0,3189.9,0.6]
[1720706436829,6.26958,3190.0,3189.9,0.51211988]
[1720706436830,7.98208035,3190.0,3189.9,0.51211988]
[1720706437339,6.896538,3190.0,3189.9,0.51211988]
[1720706437517,7.9823351,3190.0,3189.9,0.51211988]
[1720706438894,1.7127551,3190.0,3189.9,0.51211988]
[1720706439108,1.0857971,3190.0,3189.9,0.51211988]
[1720706439299,3.13473,3190.1,3189.9,0.51211988]
[1720706439709,6.26931,3190.2,3189.9,0.51211988]
[1720706439933,3.13479,3190.0,3189.9,0.51211988]
[1720706440350,4.22047531,3190.0,3189.9,0.51211988]
[1720706440638,4.95601776,3190.0,3189.9,0.51211988]
[1720706440955,8.09080776,3190.0,3189.9,0.51211988]
[1720706442344,0.73551653,3190.0,3189.9,0.51211988]
[1720706442557,3.13444,3190.4,3189.9,0.51211988]
[1720706442721,3.1346,3190.2,3189.9,0.51211988]
[1720706443043,1.08565776,3190.3,3189.9,0.51211988]
[1720706443044,4.22034776,3190.1,3189.9,0.51211988]
[1720706443246,3.13479,3190.0,3189.9,0.51211988]
[1720706443453,7.35528513,3190.0,3189.9,0.51211988]
[1720706443624,4.95602364,3190.0,3189.9,0.51211988]